bitfinex-derivatives/quotes_BTCF0:USTF0_20241221
["timestamp","ask_amount","ask_price","bid_price","bid_amount"]
[1734750736909,0.02596273,97376.0,97375.0,8e-05]
[1734750737110,0.03396273,97376.0,97375.0,8e-05]
[1734750737612,0.39076273,97376.0,97375.0,8e-05]
[1734750737917,0.39476273,97376.0,97375.0,8e-05]
[1734750738114,0.38676273,97376.0,97375.0,8e-05]
[1734750738301,0.39476273,97376.0,97375.0,8e-05]
[1734750739208,0.39076273,97376.0,97375.0,8e-05]
[1734750739410,0.39476273,97376.0,97375.0,8e-05]
[1734750740019,0.39076273,97376.0,97359.0,0.18435936]
[1734750740317,0.41222,97360.0,97359.0,0.18435936]
[1734750740524,0.42416932,97360.0,97359.0,0.18435936]
[1734750741610,0.42816932,97360.0,97359.0,0.18435936]
[1734750741910,0.42816932,97360.0,97350.0,0.21515936]
[1734750741911,0.051385,97351.0,97350.0,0.21515936]
[1734750742112,0.412185,97351.0,97350.0,0.21515936]
[1734750742305,0.42417432,97351.0,97350.0,0.21515936]
[1734750742814,0.412225,97351.0,97350.0,0.18435936]
[1734750743509,0.051389,97343.0,97342.0,0.01050879]
[1734750743708,0.36084,97351.0,97340.0,0.09913701]
[1734750743709,0.05139,97341.0,97340.0,0.03264082]
[1734750744711,0.05143,97341.0,97340.0,0.03264082]
[1734750745006,0.05143,97341.0,97340.0,0.03464082]
[1734750746107,0.05143,97341.0,97340.0,0.04596606]
[1734750750205,4e-05,97341.0,97340.0,0.04596606]
[1734750750414,4e-05,97341.0,97340.0,0.09735706]
[1734750755119,0.3608,97359.0,97352.0,0.051384]
[1734750755314,0.3608,97359.0,97353.0,0.0326]
[1734750755531,0.3608,97359.0,97358.0,8e-05]
[1734750755724,0.05138,97360.0,97358.0,0.39398]
[1734750755928,0.12252239,97363.0,97361.0,0.051379]
[1734750756423,0.02272239,97363.0,97362.0,0.36088]
[1734750756628,0.15335028,97369.0,97368.0,0.051376]
[1734750756925,0.15335028,97369.0,97368.0,0.051456]
[1734750757120,0.15335028,97380.0,97371.0,0.051374]
[1734750757322,0.15335028,97380.0,97375.0,0.051372]
[1734750757630,0.15335028,97380.0,97379.0,8e-05]
[1734750758616,0.36132001,97389.0,97379.0,8e-05]
[1734750758617,0.15335028,97387.0,97379.0,8e-05]
[1734750758811,0.15335028,97387.0,97379.0,0.19956857]
[1734750759027,0.15335028,97387.0,97386.0,8e-05]
[1734750760024,0.15735028,97387.0,97386.0,8e-05]
[1734750760528,0.013,97387.0,97386.0,8e-05]
[1734750762025,0.077,97387.0,97386.0,8e-05]
[1734750762218,0.079,97387.0,97386.0,8e-05]
[1734750763413,0.08949147,97387.0,97386.0,8e-05]
[1734750765018,0.051377,97366.0,97363.0,0.412178]
[1734750765321,4e-05,97364.0,97363.0,0.412178]
[1734750766822,0.00204,97364.0,97363.0,0.412178]
[1734750769027,0.00304,97364.0,97363.0,0.412178]
[1734750775634,0.00304,97364.0,97363.0,0.3608]
[1734750776537,0.051379,97363.0,97360.0,0.01011307]
[1734750776730,0.00304,97364.0,97356.0,0.051382]
[1734750776930,0.0333,97363.0,97356.0,0.051382]
[1734750777241,0.0333,97363.0,97360.0,8e-05]
[1734750778132,0.05138,97362.0,97360.0,8e-05]
[1734750778735,0.08268,97362.0,97360.0,8e-05]
[1734750779442,0.08468,97362.0,97360.0,8e-05]
[1734750781331,0.08368,97362.0,97360.0,8e-05]
[1734750781841,0.08568,97362.0,97360.0,8e-05]
[1734750782142,0.08468,97362.0,97360.0,8e-05]
[1734750782340,0.08668,97362.0,97360.0,8e-05]
[1734750782646,0.004,97362.0,97360.0,0.05146]
[1734750783031,0.002,97362.0,97360.0,0.05146]
[1734750783248,0.006,97362.0,97360.0,0.05146]
[1734750784928,0.002,97362.0,97360.0,0.05146]
[1734750785743,0.001,97362.0,97360.0,0.05146]
[1734750785931,0.002,97362.0,97360.0,0.05146]
[1734750786440,0.001,97362.0,97360.0,0.05146]
[1734750786741,0.002,97362.0,97360.0,0.05146]
[1734750787344,0.002,97362.0,97361.0,0.3608]
[1734750788738,0.003,97362.0,97361.0,0.3608]
[1734750788936,0.002,97362.0,97361.0,0.3608]
[1734750789239,0.001,97362.0,97361.0,0.3608]
[1734750789439,0.003,97362.0,97361.0,0.3608]
[1734750789645,0.003,97362.0,97360.0,8e-05]
[1734750789946,0.054379,97362.0,97360.0,8e-05]
[1734750790642,0.01203027,97361.0,97360.0,8e-05]
[1734750791646,0.07363027,97361.0,97360.0,8e-05]
[1734750791838,0.07463027,97361.0,97360.0,8e-05]
[1734750792237,0.07663027,97361.0,97360.0,8e-05]
[1734750792645,0.07363027,97361.0,97360.0,8e-05]
[1734750792840,0.07763027,97361.0,97360.0,8e-05]
[1734750794438,0.07963027,97361.0,97360.0,8e-05]
[1734750794943,0.07563027,97361.0,97360.0,8e-05]
[1734750795136,0.07863027,97361.0,97360.0,8e-05]
[1734750795342,0.08163027,97361.0,97360.0,8e-05]
[1734750799853,0.09169098,97361.0,97360.0,8e-05]
[1734750800049,0.08163027,97361.0,97360.0,8e-05]
[1734750800450,0.2348926,97361.0,97360.0,8e-05]
[1734750801060,0.1732926,97361.0,97360.0,8e-05]
[1734750801254,0.16126233,97361.0,97360.0,8e-05]
[1734750801757,0.008,97361.0,97360.0,8e-05]
[1734750801958,0.008,97361.0,97360.0,0.05146]
[1734750805160,0.008,97361.0,97360.0,0.06171259]
[1734750806060,0.008,97361.0,97360.0,0.01033259]
[1734750806264,0.02003027,97361.0,97360.0,8e-05]
[1734750806456,0.05323027,97361.0,97360.0,8e-05]
[1734750808161,0.04823027,97361.0,97360.0,8e-05]
[1734750808364,0.05423027,97361.0,97360.0,8e-05]
[1734750810161,0.05423027,97361.0,97350.0,0.18467314]
[1734750810162,0.051385,97351.0,97350.0,0.18467314]
[1734750810366,0.412185,97351.0,97350.0,0.18467314]
[1734750810669,0.42425527,97351.0,97350.0,0.18467314]
[1734750810966,0.051388,97345.0,97344.0,0.18467314]
[1734750811467,0.051428,97345.0,97344.0,0.18467314]
[1734750812453,0.051428,97345.0,97344.0,0.18567314]
[1734750812659,0.051428,97345.0,97344.0,0.001]
[1734750813363,0.051428,97345.0,97344.0,0.002]
[1734750820475,0.051428,97345.0,97344.0,0.01201164]
[1734750820674,0.051428,97345.0,97344.0,0.002]
[1734750825086,0.051428,97345.0,97344.0,0.01203809]
[1734750825986,4e-05,97345.0,97344.0,0.06342709]
[1734750826183,4e-05,97345.0,97344.0,0.42422709]
[1734750828089,4e-05,97345.0,97344.0,0.06342709]
[1734750830777,4e-05,97345.0,97344.0,0.002]
[1734750831889,0.01014139,97345.0,97344.0,0.002]
[1734750832284,0.01014143,97345.0,97344.0,0.002]
[1734750832694,4e-05,97345.0,97344.0,0.002]
[1734750833393,0.01207027,97345.0,97344.0,0.002]
[1734750834189,4e-05,97345.0,97344.0,0.002]
[1734750834490,0.01207027,97345.0,97344.0,0.002]
[1734750835096,4e-05,97345.0,97344.0,0.002]
[1734750835480,0.12289519,97345.0,97344.0,0.18667314]
[1734750835794,0.13492546,97345.0,97344.0,0.18667314]
[1734750836294,0.12289519,97345.0,97344.0,0.18667314]
[1734750836893,0.12289519,97345.0,97344.0,0.21897314]
[1734750837195,4e-05,97345.0,97344.0,0.0343]
[1734750838681,0.01015931,97345.0,97344.0,0.0343]
[1734750841391,0.01015931,97345.0,97344.0,0.2801869]
[1734750842693,0.01015931,97345.0,97344.0,0.0343]
[1734750846189,4e-05,97345.0,97344.0,0.0343]
[1734750846389,0.01014418,97345.0,97344.0,0.3951]
[1734750850594,0.01016594,97345.0,97344.0,0.3951]
[1734750851096,4e-05,97345.0,97344.0,0.3951]
[1734750851592,0.01016882,97345.0,97344.0,0.3951]
[1734750853011,4e-05,97345.0,97344.0,0.3951]
[1734750853187,0.01018415,97345.0,97344.0,0.3951]
[1734750853391,0.01018415,97345.0,97344.0,0.3628]
[1734750854207,0.01018415,97345.0,97344.0,0.002]
[1734750855296,0.01018415,97345.0,97344.0,0.24845169]
[1734750856003,0.01019473,97345.0,97344.0,0.24845169]
[1734750856299,4e-05,97345.0,97344.0,0.24845169]
[1734750856506,4e-05,97345.0,97344.0,0.3628]
[1734750856507,0.01020041,97345.0,97344.0,0.3628]
[1734750858696,0.01020028,97345.0,97344.0,0.3628]
[1734750860305,0.01020028,97345.0,97344.0,0.60927188]
[1734750860895,0.01020028,97345.0,97344.0,0.24847188]
[1734750861993,0.01020547,97345.0,97344.0,0.24847188]
[1734750863196,0.06159347,97345.0,97344.0,0.24847188]
[1734750864299,0.06159347,97345.0,97344.0,0.002]
[1734750865002,0.051391,97341.0,97340.0,0.18490197]
[1734750865390,0.051431,97341.0,97340.0,0.18490197]
[1734750865596,0.06156387,97341.0,97340.0,0.18490197]
[1734750865805,0.051392,97339.0,97338.0,0.18490197]
[1734750866098,0.06156487,97339.0,97338.0,0.18490197]
[1734750867000,0.051393,97337.0,97336.0,0.18490197]
[1734750867205,0.06152587,97337.0,97336.0,0.18490197]
[1734750867402,0.06156587,97337.0,97336.0,0.18490197]
[1734750868108,0.0615609,97337.0,97336.0,0.18690197]
[1734750868311,0.0625609,97337.0,97336.0,0.18890197]
[1734750868504,0.0625609,97337.0,97336.0,0.004]
[1734750869609,0.21602319,97337.0,97336.0,0.004]
[1734750870901,0.20589529,97337.0,97336.0,0.004]
[1734750871104,0.06253889,97337.0,97336.0,0.004]
[1734750871702,0.06386203,97337.0,97336.0,0.004]
[1734750872209,0.06444396,97337.0,97336.0,0.004]
[1734750872711,0.06502589,97337.0,97336.0,0.004]
[1734750873304,0.06560782,97337.0,97336.0,0.004]
[1734750873697,0.06618975,97337.0,97336.0,0.004]
[1734750874309,0.06678079,97337.0,97336.0,0.004]
[1734750877219,0.42758079,97337.0,97336.0,0.004]
[1734750878008,0.06678079,97337.0,97336.0,0.004]
[1734750878212,0.01538779,97337.0,97336.0,0.416193]
[1734750878413,0.01538779,97337.0,97336.0,0.3648]
[1734750878622,0.01538779,97337.0,97336.0,0.004]
[1734750878815,0.01538779,97337.0,97336.0,0.01237999]
[1734750879011,0.01538779,97337.0,97336.0,0.004]
[1734750880013,0.01540326,97337.0,97336.0,0.004]
[1734750882518,0.37620326,97337.0,97336.0,0.004]
[1734750883322,0.3762298,97337.0,97336.0,0.004]
[1734750883822,0.0154298,97337.0,97336.0,0.004]
[1734750885820,0.01543456,97337.0,97336.0,0.004]
[1734750890122,0.01543456,97337.0,97336.0,0.416193]
[1734750894830,0.00527279,97337.0,97336.0,0.449193]
[1734750895018,0.01548405,97337.0,97336.0,0.449193]
[1734750897823,0.00527279,97337.0,97336.0,0.088393]
[1734750898030,0.01550983,97337.0,97336.0,0.449193]
[1734750900732,0.01551355,97337.0,97336.0,0.449193]
[1734750901234,0.01535236,97337.0,97336.0,0.449193]
[1734750902330,0.01535236,97337.0,97336.0,0.76616314]
[1734750902731,0.051381,97359.0,97336.0,0.76616314]
[1734750902934,0.051381,97359.0,97353.0,0.3608]
[1734750903634,0.051381,97359.0,97354.0,0.051384]
[1734750903937,0.051382,97357.0,97354.0,0.051384]
[1734750905834,0.051383,97356.0,97354.0,0.051384]
[1734750907033,0.055383,97356.0,97354.0,0.051384]
[1734750907430,0.057383,97356.0,97354.0,0.051384]
[1734750910334,0.006,97356.0,97354.0,0.051384]
[1734750913534,0.002,97356.0,97354.0,0.051384]
[1734750913833,0.005,97356.0,97354.0,0.051384]
[1734750915532,0.01015295,97355.0,97354.0,0.051384]
[1734750916134,0.002,97356.0,97354.0,0.412184]
[1734750916338,0.006,97356.0,97354.0,0.412184]
[1734750916739,0.002,97356.0,97354.0,0.412184]
[1734750916943,0.004,97355.0,97354.0,0.412184]
[1734750917349,0.006,97356.0,97354.0,0.412184]
[1734750917843,0.002,97356.0,97354.0,0.412184]
[1734750918043,0.004,97355.0,97354.0,0.412184]
[1734750919032,0.006,97355.0,97354.0,0.412184]
[1734750919441,0.002,97355.0,97354.0,0.412184]
[1734750919934,0.006,97355.0,97354.0,0.412184]
[1734750927148,0.006,97355.0,97350.0,0.30761397]
[1734750927346,0.051386,97352.0,97350.0,0.30761397]
[1734750927542,4e-05,97351.0,97350.0,0.30761397]
[1734750927741,4e-05,97351.0,97347.0,0.30761397]
[1734750928251,4e-05,97350.0,97347.0,0.30761397]
[1734750929250,4e-05,97350.0,97345.0,0.00849907]
[1734750930142,0.00104,97350.0,97345.0,0.00849907]
[1734750930841,0.00204,97350.0,97345.0,0.00849907]
[1734750933754,0.00204,97350.0,97346.0,0.051388]
[1734750935958,0.00204,97350.0,97345.0,0.00849907]
[1734750950162,0.12491047,97350.0,97345.0,0.00849907]
[1734750952268,0.12491047,97350.0,97348.0,0.051387]
[1734750953161,0.00204,97350.0,97348.0,0.051387]
[1734750955973,0.00204,97350.0,97349.0,0.18466301]
[1734750957074,0.00204,97350.0,97349.0,8e-05]
[1734750959483,0.00204,97350.0,97349.0,0.24619068]
[1734750960776,0.00204,97350.0,97349.0,0.62010628]
[1734750962390,0.00204,97350.0,97349.0,0.31249231]
[1734750964588,0.00204,97350.0,97349.0,8e-05]
[1734750967493,0.36284,97350.0,97349.0,8e-05]
[1734750969584,0.37194573,97350.0,97349.0,8e-05]
[1734750974394,0.55589306,97350.0,97349.0,8e-05]
[1734750975799,0.37194573,97350.0,97349.0,8e-05]
[1734750979484,0.051396,97331.0,97330.0,0.07585679]
[1734750979686,0.051396,97331.0,97330.0,0.00933429]
[1734750979983,0.051436,97331.0,97329.0,0.00154083]
[1734750980489,4e-05,97330.0,97329.0,0.00154083]
[1734750980690,4e-05,97330.0,97329.0,0.01071427]
[1734750980886,4e-05,97330.0,97329.0,0.00154083]
[1734750981593,4e-05,97330.0,97329.0,0.00354083]
[1734750981993,4e-05,97330.0,97329.0,0.00554083]
[1734750982791,4e-05,97330.0,97329.0,0.00354083]
[1734750982992,0.00104,97330.0,97329.0,0.00554083]
[1734750984292,0.00104,97330.0,97329.0,0.01474282]
[1734750984490,0.00104,97330.0,97329.0,0.00554083]
[1734750987485,0.00104,97330.0,97329.0,0.004]
[1734750989497,0.00104,97330.0,97329.0,0.0356]
[1734750992198,0.00104,97330.0,97329.0,0.04476603]
[1734750996399,0.12252699,97337.0,97329.0,0.04476603]
[1734750996599,0.12252699,97337.0,97336.0,0.412193]
[1734750997494,0.12252699,97340.0,97339.0,0.051392]
[1734750997695,0.12252699,97340.0,97339.0,0.412192]
[1734750998392,0.12252699,97349.0,97345.0,0.051388]
[1734750999198,0.12252699,97348.0,97345.0,0.23614093]
[1734751000095,0.12252699,97349.0,97345.0,0.051388]
[1734751000506,0.12252699,97349.0,97345.0,0.052388]
[1734751001396,0.12252699,97349.0,97345.0,0.051388]
[1734751001600,0.12252699,97349.0,97348.0,0.412187]
[1734751001806,0.12252699,97350.0,97348.0,0.412187]
[1734751003208,0.001,97350.0,97348.0,0.412187]
[1734751003906,0.001,97349.0,97348.0,0.412187]
[1734751004495,0.00192,97350.0,97349.0,0.24633724]
[1734751005297,0.00092,97350.0,97349.0,0.24633724]
[1734751006296,0.00092,97350.0,97348.0,0.413027]
[1734751006297,0.051377,97367.0,97358.0,0.051382]
[1734751006494,0.051377,97367.0,97358.0,0.412182]
[1734751006698,0.12252699,97370.0,97358.0,0.412182]
[1734751007001,0.051382,97360.0,97359.0,8e-05]
[1734751008312,0.054382,97360.0,97359.0,8e-05]
[1734751008703,0.003,97360.0,97359.0,8e-05]
[1734751009907,0.009,97360.0,97359.0,8e-05]
[1734751010405,0.009,97360.0,97359.0,0.36088]
[1734751012121,0.009,97360.0,97359.0,0.37037154]
[1734751017527,0.009,97360.0,97359.0,0.00957154]
[1734751018818,0.009,97360.0,97359.0,0.37037154]
[1734751024429,0.060381,97360.0,97359.0,0.37037154]
[1734751024634,0.060381,97360.0,97359.0,8e-05]
[1734751026926,0.009,97360.0,97348.0,0.54535353]
[1734751027130,0.051384,97354.0,97353.0,0.18455353]
[1734751027438,0.051384,97354.0,97353.0,0.13465353]
[1734751028436,0.051384,97354.0,97348.0,0.0095256]
[1734751028437,0.15315874,97354.0,97348.0,0.0095256]
[1734751028638,0.051386,97351.0,97343.0,0.05139]
[1734751029937,0.051386,97351.0,97340.0,0.133045]
[1734751029938,0.15315874,97354.0,97352.0,0.051385]
[1734751030139,0.15315874,97354.0,97345.0,0.412189]
[1734751030339,0.051385,97352.0,97345.0,0.412189]
[1734751030528,4e-05,97346.0,97345.0,0.412189]
[1734751032732,4e-05,97346.0,97345.0,0.413189]
[1734751033935,4e-05,97346.0,97345.0,0.6590154]
[1734751037345,4e-05,97346.0,97345.0,0.413189]
[1734751040246,4e-05,97346.0,97345.0,0.052389]
[1734751040941,4e-05,97346.0,97345.0,0.001]
[1734751041137,0.051428,97346.0,97345.0,0.001]
[1734751049251,0.17422612,97346.0,97345.0,0.001]
[1734751051952,0.051428,97346.0,97345.0,0.001]
[1734751061649,0.0610824,97346.0,97345.0,0.001]
[1734751061955,0.051428,97346.0,97345.0,0.001]
[1734751063347,4e-05,97346.0,97345.0,0.001]
[1734751063548,4e-05,97346.0,97345.0,0.0629]
[1734751065848,4e-05,97346.0,97345.0,0.07240448]
[1734751071058,4e-05,97346.0,97345.0,0.31846848]
[1734751073451,4e-05,97346.0,97345.0,0.07240448]
[1734751075064,4e-05,97346.0,97345.0,0.31846848]
[1734751076558,4e-05,97346.0,97345.0,0.07240448]
[1734751081870,4e-05,97346.0,97345.0,0.04210448]
[1734751082061,0.051428,97346.0,97345.0,0.001]
[1734751091273,4e-05,97346.0,97345.0,0.001]
[1734751095475,4e-05,97346.0,97345.0,0.24729654]
[1734751098177,4e-05,97346.0,97345.0,0.001]
[1734751107192,4e-05,97346.0,97345.0,0.0669]
[1734751110097,4e-05,97346.0,97345.0,0.68388592]
[1734751112998,4e-05,97346.0,97345.0,0.73546477]
[1734751118803,4e-05,97346.0,97345.0,1.04462831]
[1734751120404,4e-05,97346.0,97345.0,0.37606354]
[1734751120593,4e-05,97346.0,97345.0,0.73686354]
[1734751123405,4e-05,97346.0,97345.0,0.77867319]
[1734751124597,4e-05,97346.0,97345.0,0.73686354]
[1734751125302,4e-05,97346.0,97345.0,0.71486354]
[1734751125806,4e-05,97346.0,97345.0,0.70306354]
[1734751129602,4e-05,97346.0,97345.0,0.66996354]
[1734751133202,0.12288249,97354.0,97353.0,0.051385]
[1734751133499,0.12288249,97354.0,97353.0,0.412185]
[1734751134304,0.12488249,97354.0,97353.0,0.412185]
[1734751134510,0.005,97354.0,97353.0,0.412185]
[1734751135117,0.005,97354.0,97353.0,0.45400359]
[1734751135612,0.005,97354.0,97353.0,0.412185]
[1734751136012,0.0639,97366.0,97363.0,0.05138]
[1734751136013,0.12288249,97364.0,97363.0,0.05138]
[1734751136210,0.12288249,97364.0,97363.0,0.41218]
[1734751137014,0.12288249,97364.0,97363.0,0.42240619]
[1734751137219,0.12688249,97364.0,97363.0,0.42240619]
[1734751137523,0.07735249,97364.0,97363.0,0.42340619]
[1734751138117,0.0303,97380.0,97363.0,0.46520456]
[1734751138118,0.05633026,97370.0,97363.0,0.46520456]
[1734751138422,0.05633026,97370.0,97369.0,0.412176]
[1734751138825,0.15360311,97376.0,97369.0,0.3608]
[1734751139019,0.15360311,97376.0,97375.0,0.051373]
[1734751139220,0.0303,97380.0,97369.0,0.3608]
[1734751139428,0.0303,97380.0,97379.0,0.412171]
[1734751140214,0.0343,97380.0,97379.0,0.412171]
[1734751141029,0.0433,97380.0,97379.0,0.413171]
[1734751141615,0.013,97380.0,97379.0,0.413171]
[1734751142013,0.15360311,97392.0,97391.0,0.051365]
[1734751142216,0.15360311,97392.0,97391.0,0.412165]
[1734751142420,0.12821311,97392.0,97391.0,0.412165]
[1734751142620,0.12821311,97400.0,97399.0,0.05136]
[1734751142823,1e-08,97400.0,97399.0,0.41216]
[1734751143723,1e-08,97400.0,97399.0,0.41316]
[1734751143724,0.00600001,97400.0,97399.0,0.41316]
[1734751144024,0.00600001,97400.0,97399.0,0.3618]
[1734751144418,0.01300001,97400.0,97399.0,0.3628]
[1734751144617,0.013,97400.0,97399.0,0.3628]
[1734751146422,0.013,97400.0,97399.0,0.002]
[1734751146617,0.4067,97400.0,97399.0,0.002]
[1734751146820,0.4067,97400.0,97399.0,0.001]
[1734751147225,0.051367,97387.0,97386.0,8e-05]
[1734751147723,0.051367,97387.0,97386.0,0.01016303]
[1734751147929,0.051367,97387.0,97386.0,8e-05]
[1734751148127,0.0317,97388.0,97386.0,8e-05]
[1734751148326,0.051363,97395.0,97388.0,0.051366]
[1734751148719,0.051363,97395.0,97392.0,0.3608]
[1734751148923,0.0617,97399.0,97392.0,0.3608]
[1734751149515,0.113061,97399.0,97392.0,0.3608]
[1734751149920,0.051364,97394.0,97392.0,0.3608]
[1734751150222,0.051363,97394.0,97392.0,0.0099457]
[1734751150420,0.051363,97394.0,97386.0,0.001]
[1734751150718,4e-05,97387.0,97385.0,0.133125]
[1734751150914,0.3608,97386.0,97385.0,8e-05]
[1734751151219,0.3608,97386.0,97376.0,0.31695393]
[1734751151220,0.051372,97378.0,97376.0,0.31695393]
[1734751151414,0.0631,97377.0,97376.0,0.18390893]
[1734751151620,0.42394,97377.0,97376.0,0.18390893]
[1734751151822,0.42394,97377.0,97376.0,0.19379565]
[1734751152022,0.42394,97377.0,97376.0,0.18390893]
[1734751152225,0.42394,97377.0,97367.0,0.0665225]
[1734751152226,0.051374,97373.0,97367.0,0.0665225]
[1734751152430,0.05138,97361.0,97360.0,0.0665225]
[1734751152629,0.051382,97357.0,97356.0,0.04409665]
[1734751153018,0.051422,97357.0,97356.0,0.04409665]
[1734751153234,0.051422,97357.0,97356.0,0.00988772]
[1734751153424,0.051422,97357.0,97351.0,0.051385]
[1734751153822,4e-05,97352.0,97351.0,0.051385]
[1734751154730,4e-05,97352.0,97351.0,0.058385]
[1734751155740,4e-05,97352.0,97351.0,0.061385]
[1734751156040,4e-05,97352.0,97351.0,0.01]
[1734751156241,4e-05,97352.0,97351.0,0.003]
[1734751156539,0.052425,97352.0,97351.0,0.01]
[1734751157236,0.051392,97338.0,97337.0,0.24605466]
[1734751157438,0.3608,97338.0,97337.0,0.24605466]
[1734751157642,4e-05,97338.0,97337.0,0.29744766]
[1734751158340,4e-05,97338.0,97337.0,0.051393]
[1734751158931,0.00104,97338.0,97337.0,0.057393]
[1734751159533,0.00104,97338.0,97337.0,0.066393]
[1734751159534,0.00204,97338.0,97337.0,0.066393]
[1734751159728,0.00104,97338.0,97337.0,0.064393]
[1734751160936,0.3608,97357.0,97337.0,0.013]
[1734751161138,0.3608,97357.0,97348.0,0.051387]
[1734751161432,0.05138,97363.0,97352.0,0.3608]
[1734751161939,0.051381,97361.0,97352.0,0.3608]
[1734751163038,0.051381,97361.0,97352.0,0.3628]
[1734751163241,0.001,97357.0,97352.0,0.3628]
[1734751164342,0.051381,97361.0,97352.0,0.3658]
[1734751166038,0.051381,97361.0,97354.0,0.051384]
[1734751167243,0.051381,97361.0,97354.0,0.055384]
[1734751170642,0.051381,97361.0,97356.0,0.051383]
[1734751171749,0.051376,97370.0,97356.0,0.001]
[1734751172054,0.3608,97378.0,97363.0,0.051379]
[1734751172354,0.051376,97369.0,97363.0,0.051379]
[1734751173450,0.3618,97367.0,97363.0,0.051379]
[1734751173645,0.3618,97367.0,97365.0,0.051378]
[1734751175051,0.3618,97367.0,97366.0,0.0319]
[1734751175864,0.3628,97367.0,97366.0,0.0319]
[1734751176459,0.3608,97367.0,97366.0,0.0319]
[1734751176752,0.36215681,97367.0,97366.0,0.0319]
[1734751177344,0.3627426,97367.0,97366.0,0.0319]
[1734751177756,0.3608,97367.0,97366.0,0.0319]
[1734751178056,0.36315149,97367.0,97366.0,0.0319]
[1734751178253,0.00235149,97367.0,97366.0,0.0319]
[1734751181352,0.00235149,97367.0,97366.0,0.04194859]
[1734751185759,0.15299321,97391.0,97366.0,0.04194859]
[1734751186056,0.20435821,97391.0,97382.0,0.051369]
[1734751186261,0.051365,97391.0,97386.0,0.051367]
[1734751186461,0.15299321,97392.0,97386.0,0.051367]
[1734751186856,0.15299321,97392.0,97389.0,0.3608]
[1734751187056,0.15299321,97392.0,97390.0,0.0301]
[1734751187258,0.007,97391.0,97390.0,0.0301]
[1734751187846,0.007,97391.0,97390.0,0.04155754]
[1734751188164,0.007,97391.0,97390.0,0.09292254]
[1734751188559,0.012,97391.0,97390.0,0.09292114]
[1734751188757,0.005,97391.0,97390.0,0.04155614]
[1734751189653,0.3658,97391.0,97383.0,0.04143316]
[1734751189857,0.051367,97386.0,97384.0,0.01144873]
[1734751190057,0.01452001,97391.0,97385.0,0.01144873]
[1734751190255,0.014,97391.0,97386.0,0.01144873]
[1734751190561,0.009,97391.0,97387.0,0.01144873]
[1734751190755,0.006,97391.0,97388.0,0.01144873]
[1734751190955,0.006,97391.0,97385.0,0.051367]
[1734751190956,0.006,97391.0,97389.0,0.01144873]
[1734751191262,0.006,97391.0,97386.0,0.051367]
[1734751191563,0.005,97391.0,97387.0,0.01144724]
[1734751191760,0.005,97391.0,97388.0,0.01144724]
[1734751191954,0.001,97391.0,97389.0,0.01144724]
[1734751192149,0.001,97391.0,97386.0,0.051367]
[1734751192355,0.001,97391.0,97387.0,0.01144333]
[1734751192659,0.001,97391.0,97388.0,0.01144275]
[1734751192660,0.051365,97390.0,97388.0,0.01144275]
[1734751192860,0.051365,97390.0,97386.0,0.051367]
[1734751193167,0.051365,97390.0,97387.0,0.011441]
[1734751193348,0.051365,97390.0,97386.0,0.051367]
[1734751193550,0.051365,97390.0,97387.0,0.01144084]
[1734751193867,0.051365,97390.0,97386.0,0.051367]
[1734751194164,0.051365,97390.0,97387.0,0.01144017]
[1734751194364,0.051365,97390.0,97386.0,0.051367]
[1734751194753,0.052365,97390.0,97387.0,0.01143995]
[1734751194961,0.055365,97390.0,97386.0,0.051367]
[1734751195161,0.055365,97390.0,97387.0,0.01144722]
[1734751195457,0.055365,97390.0,97386.0,0.051367]
[1734751195661,0.412166,97388.0,97386.0,0.051367]
[1734751195858,4e-05,97387.0,97386.0,0.051367]
[1734751196958,0.003,97390.0,97386.0,0.06282915]
[1734751197256,0.10517642,97407.0,97406.0,0.051357]
[1734751197459,0.10517642,97407.0,97406.0,0.78441915]
[1734751198560,0.001,97407.0,97406.0,0.73306215]
[1734751198856,0.001,97407.0,97406.0,0.78441915]
[1734751199265,0.002,97407.0,97406.0,0.78441915]
[1734751199953,0.001,97407.0,97406.0,0.78441915]
[1734751200155,0.002,97407.0,97406.0,0.78441915]
[1734751201462,0.002,97407.0,97406.0,0.79431361]
[1734751204969,0.002,97407.0,97406.0,0.81330402]
[1734751207954,0.0652,97435.0,97433.0,0.051342]
[1734751208156,0.051335,97449.0,97431.0,0.051343]
[1734751208367,0.051335,97449.0,97443.0,0.10127032]
[1734751208671,0.051336,97447.0,97443.0,0.10127032]
[1734751209064,0.0645,97452.0,97443.0,0.10127032]
[1734751209460,0.0645,97452.0,97443.0,0.10227032]
[1734751209461,0.009,97449.0,97443.0,0.10227032]
[1734751209969,0.051334,97450.0,97443.0,0.10127032]
[1734751210268,0.017,97447.0,97443.0,0.10327032]
[1734751210976,0.009,97447.0,97443.0,0.10227032]
[1734751211357,0.009,97447.0,97446.0,0.051335]
[1734751211558,0.003,97449.0,97446.0,0.051335]
[1734751211769,0.011,97449.0,97446.0,0.051335]
[1734751212369,0.051335,97448.0,97446.0,0.051335]
[1734751212564,0.003,97447.0,97446.0,0.051335]
[1734751212765,0.009,97447.0,97446.0,0.051335]
[1734751213266,0.051335,97448.0,97446.0,0.051335]
[1734751213462,0.051335,97448.0,97446.0,0.052335]
[1734751213865,0.051335,97448.0,97446.0,0.001]
[1734751214270,0.003,97447.0,97446.0,0.001]
[1734751214972,0.062335,97447.0,97446.0,0.001]
[1734751215774,0.059335,97447.0,97446.0,0.001]
[1734751216576,0.062335,97447.0,97446.0,0.001]
[1734751218778,0.061335,97447.0,97446.0,0.001]
[1734751218967,0.009,97447.0,97446.0,0.001]
[1734751219166,0.060335,97447.0,97446.0,0.001]
[1734751219577,0.061335,97447.0,97446.0,0.001]
[1734751225279,0.051339,97439.0,97437.0,0.10127032]
[1734751225482,0.051339,97439.0,97438.0,0.0116402]